[Event "*** SCC Grand Prix: Titled Tuesday Blitz"]
[Site "Chess.com"]
[Date "2020.10.13"]
[Round "9"]
[White "chiwii"]
[Black "ailime26"]
[Result "1-0"]
[WhiteElo "2203"]
[BlackElo "1883"]
[TimeControl "180+1"]
[EndTime "11:43:07 PDT"]
[Termination "chiwii won by resignation"]

1. e4 {[%clk 0:02:57.2]} 1... a6 {[%clk 0:02:52.9]} 2. d4 {[%clk 0:02:53.3]}
2... b5 {[%clk 0:02:53.8]} 3. Nf3 {[%clk 0:02:52.8]} 3... Bb7 {[%clk 0:02:50.9]}
4. Bd3 {[%clk 0:02:48.7]} 4... g6 {[%clk 0:02:48.5]} 5. a4 {[%clk 0:02:47]} 5...
b4 {[%clk 0:02:43.6]} 6. c3 {[%clk 0:02:46.6]} 6... bxc3 {[%clk 0:02:36.1]} 7.
Nxc3 {[%clk 0:02:47.5]} 7... Bg7 {[%clk 0:02:32.1]} 8. O-O {[%clk 0:02:46.7]}
8... e6 {[%clk 0:02:28.9]} 9. Bg5 {[%clk 0:02:44.3]} 9... Ne7 {[%clk 0:02:29]}
10. Qb3 {[%clk 0:02:41]} 10... Ra7 {[%clk 0:02:21.8]} 11. d5 {[%clk 0:02:35.7]}
11... exd5 {[%clk 0:02:05.5]} 12. exd5 {[%clk 0:02:35.6]} 12... O-O {[%clk
0:02:03.4]} 13. Rfe1 {[%clk 0:02:32.4]} 13... Re8 {[%clk 0:02:01.7]} 14. Be3
{[%clk 0:02:27.7]} 14... Ra8 {[%clk 0:01:58.7]} 15. Qxb7 {[%clk 0:02:27.6]}
15... Nbc6 {[%clk 0:01:52.7]} 16. dxc6 {[%clk 0:02:26.7]} 16... Nxc6 {[%clk
0:01:52.2]} 17. Qb3 {[%clk 0:02:09.1]} 17... Rb8 {[%clk 0:01:50]} 18. Qd1 {[%clk
0:02:07.5]} 18... Rxb2 {[%clk 0:01:47.6]} 19. Rc1 {[%clk 0:02:04.7]} 19... Nb4
{[%clk 0:01:43.5]} 20. Bc4 {[%clk 0:01:50.9]} 20... c6 {[%clk 0:01:35.3]} 21.
Re2 {[%clk 0:01:34.9]} 21... Rxe2 {[%clk 0:01:25.6]} 22. Bxe2 {[%clk 0:01:34.2]}
22... d5 {[%clk 0:01:20.4]} 23. Bc5 {[%clk 0:01:33.5]} 23... a5 {[%clk
0:01:13.7]} 24. Bxb4 {[%clk 0:01:16.2]} 24... axb4 {[%clk 0:01:14.6]} 25. Na2
{[%clk 0:01:16.5]} 25... Qb6 {[%clk 0:01:07.1]} 26. Rb1 {[%clk 0:01:11.8]} 26...
b3 {[%clk 0:00:58.7]} 27. Rxb3 {[%clk 0:01:09.4]} 27... Qa5 {[%clk 0:00:52.1]}
28. Bf1 {[%clk 0:01:08.7]} 28... Qxa4 {[%clk 0:00:46.5]} 29. Nc1 {[%clk
0:01:08.9]} 29... d4 {[%clk 0:00:31.9]} 30. Rd3 {[%clk 0:01:03.2]} 30... c5
{[%clk 0:00:31.1]} 31. Qxa4 {[%clk 0:01:02.9]} 1-0

[Event "*** SCC Grand Prix: Titled Tuesday Blitz"]
[Site "Chess.com"]
[Date "2020.10.13"]
[Round "9"]
[White "bazar-wokzal"]
[Black "JosefineHeinemann"]
[Result "1-0"]
[WhiteElo "2520"]
[BlackElo "2613"]
[TimeControl "180+1"]
[EndTime "11:43:09 PDT"]
[Termination "bazar-wokzal won by resignation"]

1. e4 {[%clk 0:03:00.9]} 1... c5 {[%clk 0:02:59.7]} 2. c3 {[%clk 0:03:00.9]}
2... Nf6 {[%clk 0:02:58]} 3. e5 {[%clk 0:03:01.3]} 3... Nd5 {[%clk 0:02:58.6]}
4. d4 {[%clk 0:03:02.2]} 4... cxd4 {[%clk 0:02:59.5]} 5. cxd4 {[%clk 0:03:02.9]}
5... Nc6 {[%clk 0:03:00.2]} 6. Nc3 {[%clk 0:03:03]} 6... e6 {[%clk 0:02:55.7]}
7. f4 {[%clk 0:03:02.4]} 7... d6 {[%clk 0:02:55.1]} 8. Nf3 {[%clk 0:03:02.3]}
8... Be7 {[%clk 0:02:55]} 9. Bd3 {[%clk 0:03:01.5]} 9... O-O {[%clk 0:02:53.7]}
10. h4 {[%clk 0:03:01.5]} 10... f5 {[%clk 0:02:48.9]} 11. exf6 {[%clk
0:02:58.8]} 11... Nxf6 {[%clk 0:02:48.5]} 12. Be3 {[%clk 0:02:39.6]} 12... a6
{[%clk 0:02:42.4]} 13. Qe2 {[%clk 0:02:33.4]} 13... Re8 {[%clk 0:02:41.9]} 14.
O-O-O {[%clk 0:02:27.7]} 14... Qc7 {[%clk 0:02:41]} 15. Kb1 {[%clk 0:02:26.1]}
15... Nb4 {[%clk 0:02:39.5]} 16. Bc4 {[%clk 0:02:21.3]} 16... b5 {[%clk
0:02:38.2]} 17. Bb3 {[%clk 0:02:21]} 17... Nfd5 {[%clk 0:02:34.8]} 18. Nxd5
{[%clk 0:02:10.3]} 18... Nxd5 {[%clk 0:02:33.6]} 19. Ng5 {[%clk 0:02:01.5]}
19... Bf6 {[%clk 0:02:17.3]} 20. Qd3 {[%clk 0:01:54.5]} 20... g6 {[%clk
0:02:13.7]} 21. h5 {[%clk 0:01:48.1]} 21... Nxe3 {[%clk 0:01:34.6]} 22. Qxe3
{[%clk 0:01:20.2]} 22... Bxg5 {[%clk 0:01:33.5]} 23. fxg5 {[%clk 0:01:19.6]}
23... Ra7 {[%clk 0:01:16]} 24. hxg6 {[%clk 0:01:18.2]} 24... hxg6 {[%clk
0:01:14.6]} 25. Rh6 {[%clk 0:01:17.3]} 25... Re7 {[%clk 0:01:10.6]} 26. Rxg6+
{[%clk 0:01:14.6]} 26... Rg7 {[%clk 0:01:11.2]} 27. Bxe6+ {[%clk 0:01:13.2]}
27... Bxe6 {[%clk 0:01:10.5]} 28. Qxe6+ {[%clk 0:01:12.6]} 28... Qf7 {[%clk
0:01:10.5]} 29. Rxg7+ {[%clk 0:01:03.6]} 29... Kxg7 {[%clk 0:01:11.4]} 30. Qh6+
{[%clk 0:00:56.3]} 30... Kg8 {[%clk 0:01:10.7]} 31. Rh1 {[%clk 0:00:51.3]} 31...
Qg7 {[%clk 0:01:07.5]} 32. Qxd6 {[%clk 0:00:44.8]} 32... Rf7 {[%clk 0:01:06.1]}
33. g6 {[%clk 0:00:40.1]} 33... Qf8 {[%clk 0:00:59.5]} 34. gxf7+ {[%clk
0:00:37.5]} 1-0

[Event "*** SCC Grand Prix: Titled Tuesday Blitz"]
[Site "Chess.com"]
[Date "2020.10.13"]
[Round "9"]
[White "ajdemipopushi"]
[Black "janumber1"]
[Result "1-0"]
[WhiteElo "2325"]
[BlackElo "2159"]
[TimeControl "180+1"]
[EndTime "11:43:15 PDT"]
[Termination "ajdemipopushi won on time"]

1. Nf3 {[%clk 0:03:00.9]} 1... Nf6 {[%clk 0:02:59.2]} 2. g3 {[%clk 0:03:01.3]}
2... g6 {[%clk 0:02:57.4]} 3. Bg2 {[%clk 0:03:01.9]} 3... Bg7 {[%clk 0:02:56.4]}
4. c4 {[%clk 0:03:02.8]} 4... O-O {[%clk 0:02:54.5]} 5. O-O {[%clk 0:03:03.7]}
5... d6 {[%clk 0:02:54.2]} 6. d4 {[%clk 0:03:03.8]} 6... Nbd7 {[%clk 0:02:41.1]}
7. Nc3 {[%clk 0:03:03]} 7... c5 {[%clk 0:02:36.2]} 8. d5 {[%clk 0:03:00.3]} 8...
Nb6 {[%clk 0:02:31.6]} 9. Nd2 {[%clk 0:02:58.4]} 9... h5 {[%clk 0:02:18.5]} 10.
e4 {[%clk 0:02:52.4]} 10... h4 {[%clk 0:02:17]} 11. Re1 {[%clk 0:02:52]} 11...
h3 {[%clk 0:02:07.8]} 12. Bh1 {[%clk 0:02:50.1]} 12... Ng4 {[%clk 0:02:03.7]}
13. Qe2 {[%clk 0:02:10.9]} 13... Bd4 {[%clk 0:01:52.8]} 14. Nd1 {[%clk 0:02:10]}
14... f5 {[%clk 0:01:31.7]} 15. Nb3 {[%clk 0:02:07.9]} 15... Bg7 {[%clk
0:00:19.3]} 16. Bg5 {[%clk 0:01:55.1]} 16... Rf7 {[%clk 0:00:10.8]} 17. f3
{[%clk 0:01:38.2]} 17... Ne5 {[%clk 0:00:09.7]} 18. Rc1 {[%clk 0:01:29]} 18...
fxe4 {[%clk 0:00:09.2]} 19. Qxe4 {[%clk 0:01:23.1]} 19... Bf5 {[%clk 0:00:08.2]}
20. Qe3 {[%clk 0:01:19.2]} 20... Qd7 {[%clk 0:00:07]} 21. Nd2 {[%clk 0:01:04.3]}
21... Nd3 {[%clk 0:00:05.9]} 22. Nf2 {[%clk 0:01:00.4]} 22... Nxc1 {[%clk
0:00:03.3]} 23. Rxc1 {[%clk 0:01:00.2]} 23... e6 {[%clk 0:00:02.2]} 24. g4
{[%clk 0:00:59.2]} 1-0

[Event "*** SCC Grand Prix: Titled Tuesday Blitz"]
[Site "Chess.com"]
[Date "2020.10.13"]
[Round "9"]
[White "icychess54"]
[Black "alejanchess73"]
[Result "1-0"]
[WhiteElo "2278"]
[BlackElo "2352"]
[TimeControl "180+1"]
[EndTime "11:43:18 PDT"]
[Termination "icychess54 won by resignation"]

1. c4 {[%clk 0:03:00.9]} 1... Nf6 {[%clk 0:02:58.2]} 2. Nf3 {[%clk 0:03:01.4]}
2... c5 {[%clk 0:02:58.2]} 3. Nc3 {[%clk 0:03:00.5]} 3... g6 {[%clk 0:02:58.4]}
4. d4 {[%clk 0:03:00.5]} 4... cxd4 {[%clk 0:02:58.2]} 5. Nxd4 {[%clk 0:03:01.4]}
5... Bg7 {[%clk 0:02:58.5]} 6. e3 {[%clk 0:03:02.1]} 6... O-O {[%clk 0:02:58.5]}
7. Be2 {[%clk 0:03:02.7]} 7... Nc6 {[%clk 0:02:58.9]} 8. O-O {[%clk 0:03:03.3]}
8... d5 {[%clk 0:02:57.6]} 9. b3 {[%clk 0:03:01.5]} 9... dxc4 {[%clk 0:02:56.9]}
10. Bxc4 {[%clk 0:02:57.4]} 10... Nxd4 {[%clk 0:02:55.8]} 11. exd4 {[%clk
0:02:57.1]} 11... Bg4 {[%clk 0:02:52.2]} 12. f3 {[%clk 0:02:54.2]} 12... Bf5
{[%clk 0:02:52.2]} 13. Be3 {[%clk 0:02:41.1]} 13... Rc8 {[%clk 0:02:51.8]} 14.
Qd2 {[%clk 0:02:38.7]} 14... a6 {[%clk 0:02:51.4]} 15. a4 {[%clk 0:02:37.5]}
15... Re8 {[%clk 0:02:42.5]} 16. a5 {[%clk 0:02:31.1]} 16... Bd7 {[%clk
0:02:33.9]} 17. d5 {[%clk 0:02:27]} 17... Qc7 {[%clk 0:02:21.8]} 18. Bd4 {[%clk
0:01:46.4]} 18... h5 {[%clk 0:02:19.5]} 19. Ne4 {[%clk 0:01:44.5]} 19... Nxe4
{[%clk 0:02:15.7]} 20. fxe4 {[%clk 0:01:45.4]} 20... Bxd4+ {[%clk 0:02:15.7]}
21. Qxd4 {[%clk 0:01:46.3]} 21... Qc5 {[%clk 0:02:15.7]} 22. Rad1 {[%clk
0:01:28.3]} 22... Qxd4+ {[%clk 0:02:14.6]} 23. Rxd4 {[%clk 0:01:29.2]} 23... e6
{[%clk 0:02:12]} 24. dxe6 {[%clk 0:00:47.2]} 24... Bxe6 {[%clk 0:02:11.4]} 25.
Bxe6 {[%clk 0:00:47.6]} 25... Rxe6 {[%clk 0:02:11.6]} 26. Rd7 {[%clk 0:00:48]}
26... f6 {[%clk 0:02:09.2]} 27. Rxb7 {[%clk 0:00:44.8]} 27... Rxe4 {[%clk
0:02:05.4]} 28. Rxf6 {[%clk 0:00:41.9]} 28... Rc1+ {[%clk 0:02:03.3]} 29. Kf2
{[%clk 0:00:42]} 29... Rc2+ {[%clk 0:02:00.4]} 30. Kf3 {[%clk 0:00:41.6]} 30...
Rg4 {[%clk 0:02:00.4]} 31. g3 {[%clk 0:00:32.2]} 31... Rc5 {[%clk 0:01:10.4]}
32. Rxa6 {[%clk 0:00:26.1]} 32... Rf5+ {[%clk 0:01:10.2]} 33. Kg2 {[%clk
0:00:25.7]} 33... Re4 {[%clk 0:01:05.6]} 34. Ra8+ {[%clk 0:00:23.6]} 34... Rf8
{[%clk 0:01:05.1]} 35. Rxf8+ {[%clk 0:00:23.9]} 35... Kxf8 {[%clk 0:01:05.6]}
36. b4 {[%clk 0:00:23.8]} 1-0

[Event "*** SCC Grand Prix: Titled Tuesday Blitz"]
[Site "Chess.com"]
[Date "2020.10.13"]
[Round "9"]
[White "KonstantinB_1983"]
[Black "sopo-tereladze"]
[Result "0-1"]
[WhiteElo "2455"]
[BlackElo "2295"]
[TimeControl "180+1"]
[EndTime "11:43:19 PDT"]
[Termination "sopo-tereladze won by resignation"]

1. d4 {[%clk 0:03:00.9]} 1... Nf6 {[%clk 0:02:58.6]} 2. c4 {[%clk 0:03:01]} 2...
e6 {[%clk 0:02:58.9]} 3. Nf3 {[%clk 0:02:59.7]} 3... d5 {[%clk 0:02:55.4]} 4.
Nc3 {[%clk 0:02:58]} 4... Be7 {[%clk 0:02:52.2]} 5. Bg5 {[%clk 0:02:57]} 5...
O-O {[%clk 0:02:51.7]} 6. e3 {[%clk 0:02:57.2]} 6... h6 {[%clk 0:02:50.5]} 7.
Bh4 {[%clk 0:02:55.4]} 7... Ne4 {[%clk 0:02:50.9]} 8. Bxe7 {[%clk 0:02:53.3]}
8... Qxe7 {[%clk 0:02:51.8]} 9. Qb3 {[%clk 0:02:52.5]} 9... Nxc3 {[%clk
0:02:50.3]} 10. Qxc3 {[%clk 0:02:52.4]} 10... c6 {[%clk 0:02:51.2]} 11. Bd3
{[%clk 0:02:51]} 11... Nd7 {[%clk 0:02:50]} 12. O-O {[%clk 0:02:49.7]} 12... Re8
{[%clk 0:02:49.7]} 13. cxd5 {[%clk 0:02:44.5]} 13... exd5 {[%clk 0:02:48.9]} 14.
b4 {[%clk 0:02:44.4]} 14... a6 {[%clk 0:02:48]} 15. a4 {[%clk 0:02:43.3]} 15...
Nf6 {[%clk 0:02:46.3]} 16. Rab1 {[%clk 0:02:40.1]} 16... Ne4 {[%clk 0:02:42.8]}
17. Qc2 {[%clk 0:02:38.6]} 17... Bf5 {[%clk 0:02:28.3]} 18. h3 {[%clk
0:02:31.9]} 18... Qf6 {[%clk 0:02:24.5]} 19. Ne5 {[%clk 0:02:29.8]} 19... Nd6
{[%clk 0:02:10.8]} 20. f3 {[%clk 0:02:17.2]} 20... Bxd3 {[%clk 0:02:06.8]} 21.
Qxd3 {[%clk 0:02:15.1]} 21... Qf5 {[%clk 0:02:03.1]} 22. Qd2 {[%clk 0:01:47.8]}
22... f6 {[%clk 0:01:56.3]} 23. e4 {[%clk 0:01:42.3]} 23... dxe4 {[%clk
0:01:52.4]} 24. fxe4 {[%clk 0:01:37.9]} 24... Qxe4 {[%clk 0:01:49.2]} 25. Rbe1
{[%clk 0:01:26.5]} 25... Qd5 {[%clk 0:01:48.4]} 26. Ng6 {[%clk 0:01:25.5]} 26...
Qf7 {[%clk 0:01:44]} 27. Qd3 {[%clk 0:01:17.3]} 27... Rxe1 {[%clk 0:01:40.7]}
28. Rxe1 {[%clk 0:01:15.5]} 28... Re8 {[%clk 0:01:41.6]} 29. Rf1 {[%clk
0:01:13.5]} 29... Re4 {[%clk 0:01:32.5]} 30. Qg3 {[%clk 0:01:08.9]} 30... Rxd4
{[%clk 0:01:29.1]} 31. h4 {[%clk 0:01:02]} 31... h5 {[%clk 0:01:14]} 32. Re1
{[%clk 0:00:46.5]} 32... Rg4 {[%clk 0:01:09.2]} 33. Ne7+ {[%clk 0:00:42.8]}
33... Qxe7 {[%clk 0:01:06.3]} 34. Qb3+ {[%clk 0:00:33.5]} 34... Qf7 {[%clk
0:01:01.9]} 35. Qxf7+ {[%clk 0:00:31]} 35... Kxf7 {[%clk 0:01:01]} 0-1

[Event "*** SCC Grand Prix: Titled Tuesday Blitz"]
[Site "Chess.com"]
[Date "2020.10.13"]
[Round "9"]
[White "boasovietica"]
[Black "thedjoker98"]
[Result "0-1"]
[WhiteElo "2408"]
[BlackElo "2590"]
[TimeControl "180+1"]
[EndTime "11:43:20 PDT"]
[Termination "thedjoker98 won by resignation"]

1. e4 {[%clk 0:03:00.9]} 1... e5 {[%clk 0:03:00]} 2. Nf3 {[%clk 0:03:00.7]} 2...
Nc6 {[%clk 0:03:00.2]} 3. Bb5 {[%clk 0:03:00.6]} 3... g6 {[%clk 0:03:00.3]} 4.
Bxc6 {[%clk 0:02:49.5]} 4... dxc6 {[%clk 0:03:00]} 5. d4 {[%clk 0:02:50]} 5...
exd4 {[%clk 0:02:59.3]} 6. Qxd4 {[%clk 0:02:49.5]} 6... Qxd4 {[%clk 0:02:58.9]}
7. Nxd4 {[%clk 0:02:49.5]} 7... Bg7 {[%clk 0:02:59.8]} 8. Nb3 {[%clk 0:02:49]}
8... Ne7 {[%clk 0:02:49.1]} 9. c3 {[%clk 0:02:41.6]} 9... O-O {[%clk 0:02:47.6]}
10. Bf4 {[%clk 0:02:40.9]} 10... Re8 {[%clk 0:02:45.2]} 11. O-O {[%clk
0:02:33.1]} 11... a5 {[%clk 0:02:43.1]} 12. Bxc7 {[%clk 0:01:47.4]} 12... a4
{[%clk 0:02:41.3]} 13. Nd4 {[%clk 0:01:46.8]} 13... f5 {[%clk 0:02:38.5]} 14.
exf5 {[%clk 0:01:44.6]} 14... Nxf5 {[%clk 0:02:39.4]} 15. Nxf5 {[%clk
0:01:43.9]} 15... Bxf5 {[%clk 0:02:40.3]} 16. Nd2 {[%clk 0:01:20.5]} 16... a3
{[%clk 0:02:30.6]} 17. bxa3 {[%clk 0:01:10.2]} 17... Bxc3 {[%clk 0:01:54.8]} 18.
Rad1 {[%clk 0:01:07.1]} 18... Rxa3 {[%clk 0:01:52.5]} 19. Nc4 {[%clk 0:01:04.8]}
19... Rxa2 {[%clk 0:01:51]} 20. Nd6 {[%clk 0:01:04.6]} 20... Rf8 {[%clk
0:01:49.2]} 21. Nxf5 {[%clk 0:01:01.6]} 21... Rxf5 {[%clk 0:01:50.1]} 22. Bb6
{[%clk 0:00:54.9]} 22... Rd5 {[%clk 0:01:43.7]} 23. Rxd5 {[%clk 0:00:35.3]}
23... cxd5 {[%clk 0:01:44.6]} 24. Rd1 {[%clk 0:00:35.1]} 24... Rb2 {[%clk
0:01:37.2]} 25. Bc5 {[%clk 0:00:34.7]} 25... b6 {[%clk 0:01:35.9]} 26. Be3
{[%clk 0:00:34.6]} 26... d4 {[%clk 0:01:35.7]} 27. Bf4 {[%clk 0:00:34.6]} 27...
b5 {[%clk 0:01:33.8]} 28. Kf1 {[%clk 0:00:33.9]} 28... b4 {[%clk 0:01:33.3]} 29.
Be5 {[%clk 0:00:34.2]} 29... Ra2 {[%clk 0:01:22.6]} 30. h4 {[%clk 0:00:09.2]}
30... b3 {[%clk 0:01:16.1]} 31. Bxd4 {[%clk 0:00:02.9]} 31... Bxd4 {[%clk
0:01:15.1]} 0-1

[Event "*** SCC Grand Prix: Titled Tuesday Blitz"]
[Site "Chess.com"]
[Date "2020.10.13"]
[Round "9"]
[White "VladimirBugayev"]
[Black "LubovMarkelova"]
[Result "0-1"]
[WhiteElo "2335"]
[BlackElo "2252"]
[TimeControl "180+1"]
[EndTime "11:43:22 PDT"]
[Termination "LubovMarkelova won on time"]

1. e4 {[%clk 0:03:00.9]} 1... e6 {[%clk 0:02:59.8]} 2. d4 {[%clk 0:03:00.8]}
2... d5 {[%clk 0:03:00.5]} 3. Bd3 {[%clk 0:03:01.4]} 3... dxe4 {[%clk
0:02:59.2]} 4. Bxe4 {[%clk 0:03:01.9]} 4... Nf6 {[%clk 0:02:59.9]} 5. Bf3 {[%clk
0:03:02.4]} 5... c5 {[%clk 0:03:00.5]} 6. Ne2 {[%clk 0:03:01.4]} 6... Nc6 {[%clk
0:03:01.2]} 7. Be3 {[%clk 0:02:56.1]} 7... cxd4 {[%clk 0:02:53.1]} 8. Nxd4
{[%clk 0:02:40.3]} 8... Ne5 {[%clk 0:02:53.1]} 9. Nc3 {[%clk 0:02:39.5]} 9...
Bb4 {[%clk 0:02:52]} 10. Qe2 {[%clk 0:02:03.9]} 10... Nxf3+ {[%clk 0:02:49.1]}
11. gxf3 {[%clk 0:02:02.5]} 11... Bxc3+ {[%clk 0:02:49.2]} 12. bxc3 {[%clk
0:02:02.2]} 12... O-O {[%clk 0:02:47.2]} 13. Rg1 {[%clk 0:02:01.5]} 13... e5
{[%clk 0:02:36.2]} 14. Bh6 {[%clk 0:01:53.7]} 14... g6 {[%clk 0:02:36.3]} 15.
Bxf8 {[%clk 0:01:42.3]} 15... Qxf8 {[%clk 0:02:36.4]} 16. Qxe5 {[%clk
0:01:35.5]} 16... Nd7 {[%clk 0:02:27.9]} 17. Qc7 {[%clk 0:01:09.4]} 17... Nb6
{[%clk 0:02:15.9]} 18. Kd2 {[%clk 0:00:56.6]} 18... Bh3 {[%clk 0:02:06.1]} 19.
Qg3 {[%clk 0:00:20.2]} 19... Nc4+ {[%clk 0:01:54]} 20. Kd3 {[%clk 0:00:18.5]}
20... Nb2+ {[%clk 0:01:47.3]} 21. Kd2 {[%clk 0:00:18.6]} 21... Bd7 {[%clk
0:01:44.4]} 22. h4 {[%clk 0:00:16]} 22... Rc8 {[%clk 0:01:35.4]} 23. h5 {[%clk
0:00:14.3]} 23... Qa3 {[%clk 0:01:24.4]} 24. f4 {[%clk 0:00:13.8]} 24... Nc4+
{[%clk 0:01:21.9]} 25. Ke1 {[%clk 0:00:09.4]} 25... Qb2 {[%clk 0:01:19.8]} 26.
Rd1 {[%clk 0:00:07]} 26... Re8+ {[%clk 0:01:08.7]} 27. Kf1 {[%clk 0:00:04.8]}
27... Nd2+ {[%clk 0:01:04.4]} 28. Rxd2 {[%clk 0:00:01.6]} 28... Qc1+ {[%clk
0:01:04.7]} 0-1

[Event "*** SCC Grand Prix: Titled Tuesday Blitz"]
[Site "Chess.com"]
[Date "2020.10.13"]
[Round "9"]
[White "HanSchut"]
[Black "Sn00pPawn"]
[Result "1-0"]
[WhiteElo "2201"]
[BlackElo "1967"]
[TimeControl "180+1"]
[EndTime "11:43:26 PDT"]
[Termination "HanSchut won by checkmate"]

1. e4 {[%clk 0:03:00.9]} 1... c6 {[%clk 0:00:25.2]} 2. d4 {[%clk 0:02:58.6]}
2... d5 {[%clk 0:00:26.1]} 3. exd5 {[%clk 0:02:56.7]} 3... cxd5 {[%clk 0:00:27]}
4. c4 {[%clk 0:02:57.4]} 4... dxc4 {[%clk 0:00:26.8]} 5. Bxc4 {[%clk 0:02:56.7]}
5... Nf6 {[%clk 0:00:27.7]} 6. Nf3 {[%clk 0:02:54.6]} 6... e6 {[%clk 0:00:28.1]}
7. O-O {[%clk 0:02:53.6]} 7... Be7 {[%clk 0:00:28.7]} 8. Nc3 {[%clk 0:02:54.1]}
8... O-O {[%clk 0:00:29.4]} 9. Bg5 {[%clk 0:02:48.6]} 9... Nc6 {[%clk
0:00:26.7]} 10. Qd2 {[%clk 0:02:34.4]} 10... Bd7 {[%clk 0:00:26.5]} 11. Rac1
{[%clk 0:02:31.7]} 11... Rc8 {[%clk 0:00:25.7]} 12. Bd3 {[%clk 0:02:26.3]} 12...
Nb4 {[%clk 0:00:21.9]} 13. Bb1 {[%clk 0:02:20]} 13... Nbd5 {[%clk 0:00:20.3]}
14. Ne5 {[%clk 0:02:02.9]} 14... h6 {[%clk 0:00:17.7]} 15. Bh4 {[%clk
0:01:56.4]} 15... Re8 {[%clk 0:00:17.4]} 16. Rfe1 {[%clk 0:01:47.4]} 16... a6
{[%clk 0:00:15.9]} 17. Qd3 {[%clk 0:01:27.2]} 17... Nb4 {[%clk 0:00:15.1]} 18.
Qg3 {[%clk 0:01:19.5]} 18... Nfd5 {[%clk 0:00:14.1]} 19. Bxe7 {[%clk 0:01:15.4]}
19... Qxe7 {[%clk 0:00:15]} 20. a3 {[%clk 0:01:15.7]} 20... Nxc3 {[%clk
0:00:14.4]} 21. bxc3 {[%clk 0:01:09.6]} 21... Nd5 {[%clk 0:00:13.6]} 22. Qd3
{[%clk 0:01:06.2]} 22... Nf6 {[%clk 0:00:13.1]} 23. c4 {[%clk 0:00:59]} 23...
Rc7 {[%clk 0:00:11.4]} 24. Re3 {[%clk 0:00:50.6]} 24... Rec8 {[%clk 0:00:10.6]}
25. Rf3 {[%clk 0:00:50.8]} 25... Qd6 {[%clk 0:00:09.6]} 26. Rxf6 {[%clk
0:00:49]} 26... gxf6 {[%clk 0:00:09.3]} 27. Qh7+ {[%clk 0:00:48.1]} 27... Kf8
{[%clk 0:00:10.2]} 28. Qxf7# {[%clk 0:00:48.5]} 1-0

[Event "*** SCC Grand Prix: Titled Tuesday Blitz"]
[Site "Chess.com"]
[Date "2020.10.13"]
[Round "9"]
[White "JuliaEfremova"]
[Black "CzechmVIII"]
[Result "1-0"]
[WhiteElo "2333"]
[BlackElo "2173"]
[TimeControl "180+1"]
[EndTime "11:43:28 PDT"]
[Termination "JuliaEfremova won by resignation"]

1. d4 {[%clk 0:03:00.9]} 1... Nf6 {[%clk 0:02:59.4]} 2. Bf4 {[%clk 0:03:01.2]}
2... c5 {[%clk 0:02:59.3]} 3. e3 {[%clk 0:03:01.2]} 3... Nd5 {[%clk 0:02:59.2]}
4. Bg3 {[%clk 0:02:56.7]} 4... Qb6 {[%clk 0:02:59.3]} 5. b3 {[%clk 0:02:39.1]}
5... cxd4 {[%clk 0:02:59]} 6. Qxd4 {[%clk 0:02:36]} 6... Qxd4 {[%clk 0:02:58.5]}
7. exd4 {[%clk 0:02:35.5]} 7... Nc6 {[%clk 0:02:59.1]} 8. Nf3 {[%clk 0:02:34.4]}
8... g6 {[%clk 0:02:59]} 9. Be2 {[%clk 0:02:32.2]} 9... Bh6 {[%clk 0:02:58.6]}
10. O-O {[%clk 0:02:29.2]} 10... O-O {[%clk 0:02:53.1]} 11. c4 {[%clk
0:02:28.4]} 11... Nf4 {[%clk 0:01:57.8]} 12. Bxf4 {[%clk 0:02:21.9]} 12... Bxf4
{[%clk 0:01:57.9]} 13. Nc3 {[%clk 0:02:20.6]} 13... d6 {[%clk 0:01:44.8]} 14.
Rad1 {[%clk 0:02:09.8]} 14... Bh6 {[%clk 0:01:38.5]} 15. Nd5 {[%clk 0:02:04.7]}
15... Be6 {[%clk 0:01:17.3]} 16. Ne3 {[%clk 0:02:04]} 16... Bd7 {[%clk
0:01:14.1]} 17. d5 {[%clk 0:02:02.5]} 17... Ne5 {[%clk 0:01:08.2]} 18. Nxe5
{[%clk 0:02:00.9]} 18... dxe5 {[%clk 0:01:09.1]} 19. c5 {[%clk 0:01:56.6]} 19...
Rac8 {[%clk 0:00:58.5]} 20. b4 {[%clk 0:01:56]} 20... a5 {[%clk 0:00:51.8]} 21.
a3 {[%clk 0:01:55.7]} 21... axb4 {[%clk 0:00:52.1]} 22. axb4 {[%clk 0:01:55.9]}
22... f5 {[%clk 0:00:44.1]} 23. Rfe1 {[%clk 0:01:42.9]} 23... e4 {[%clk
0:00:37.6]} 24. Nc4 {[%clk 0:01:41.7]} 24... Bb5 {[%clk 0:00:37.4]} 25. Nb6
{[%clk 0:01:39.6]} 25... Bxe2 {[%clk 0:00:36.5]} 26. Rxe2 {[%clk 0:01:36.4]}
26... Rcd8 {[%clk 0:00:36.4]} 27. Ra2 {[%clk 0:01:28.6]} 27... Bg7 {[%clk
0:00:31.1]} 28. Ra7 {[%clk 0:01:24]} 28... Bc3 {[%clk 0:00:30.9]} 29. Rb1 {[%clk
0:01:22.3]} 29... Rf6 {[%clk 0:00:20]} 30. Rxb7 {[%clk 0:01:19.1]} 30... Rxb6
{[%clk 0:00:13.4]} 31. cxb6 {[%clk 0:01:10.6]} 31... Rxd5 {[%clk 0:00:14.3]} 32.
Rxe7 {[%clk 0:01:05.2]} 32... Bxb4 {[%clk 0:00:12.1]} 33. b7 {[%clk 0:01:01.3]}
33... Bxe7 {[%clk 0:00:12]} 34. b8=Q+ {[%clk 0:01:00.9]} 34... Kf7 {[%clk
0:00:12.9]} 1-0

[Event "*** SCC Grand Prix: Titled Tuesday Blitz"]
[Site "Chess.com"]
[Date "2020.10.13"]
[Round "9"]
[White "anon569"]
[Black "Sergey85Rodchenkov"]
[Result "1-0"]
[WhiteElo "2283"]
[BlackElo "2420"]
[TimeControl "180+1"]
[EndTime "11:43:29 PDT"]
[Termination "anon569 won by resignation"]

1. e4 {[%clk 0:02:59.7]} 1... c5 {[%clk 0:02:58.9]} 2. Nf3 {[%clk 0:02:58.8]}
2... d6 {[%clk 0:02:58.8]} 3. d4 {[%clk 0:02:58.2]} 3... cxd4 {[%clk 0:02:58.3]}
4. Nxd4 {[%clk 0:02:57.7]} 4... Nf6 {[%clk 0:02:57.7]} 5. Nc3 {[%clk 0:02:56.9]}
5... a6 {[%clk 0:02:57.6]} 6. Bg5 {[%clk 0:02:54.3]} 6... Nbd7 {[%clk
0:02:57.2]} 7. f4 {[%clk 0:02:53.4]} 7... Qb6 {[%clk 0:02:56.7]} 8. Bxf6 {[%clk
0:02:43.7]} 8... Nxf6 {[%clk 0:02:44.3]} 9. e5 {[%clk 0:02:43]} 9... dxe5 {[%clk
0:02:33.8]} 10. fxe5 {[%clk 0:02:42.3]} 10... Qxb2 {[%clk 0:02:11.2]} 11. Na4
{[%clk 0:02:35.4]} 11... Qa3 {[%clk 0:02:10.9]} 12. c3 {[%clk 0:02:00.8]} 12...
Nd5 {[%clk 0:02:09.1]} 13. Nb5 {[%clk 0:01:57.5]} 13... axb5 {[%clk 0:02:01]}
14. Bxb5+ {[%clk 0:01:55]} 14... Bd7 {[%clk 0:01:40.8]} 15. Bxd7+ {[%clk
0:01:50.6]} 15... Kxd7 {[%clk 0:01:41.1]} 16. Qxd5+ {[%clk 0:01:49.4]} 16... Kc7
{[%clk 0:01:24.4]} 17. Qc4+ {[%clk 0:01:41.5]} 17... Kb8 {[%clk 0:01:22.6]} 18.
Nb6 {[%clk 0:01:40]} 18... Ra6 {[%clk 0:01:17]} 19. Qc8+ {[%clk 0:01:30.9]}
19... Ka7 {[%clk 0:01:16.3]} 20. Nd7 {[%clk 0:01:23]} 20... Ra5 {[%clk
0:00:38.4]} 21. Qb8+ {[%clk 0:01:08.8]} 21... Ka6 {[%clk 0:00:37.6]} 22. Qa8+
{[%clk 0:01:08]} 22... Kb5 {[%clk 0:00:37.7]} 23. Qxb7+ {[%clk 0:00:53.7]} 23...
Ka4 {[%clk 0:00:24]} 24. Nb6+ {[%clk 0:00:44.6]} 24... Kb5 {[%clk 0:00:21.8]}
25. Rb1+ {[%clk 0:00:40]} 1-0